bitfinex/quotes_ETHUSD_20250724
["timestamp","ask_amount","ask_price","bid_price","bid_amount"]
[1753395128206,4.237,3715.8,3715.4,0.1344]
[1753395128546,2.69143901,3715.5,3715.4,0.1344]
[1753395128767,3.60238274,3715.6,3715.4,0.1344]
[1753395129044,3.14968274,3715.6,3715.4,0.1344]
[1753395129245,2.6914278,3715.5,3715.4,0.1344]
[1753395129808,2.69164513,3715.2,3715.1,0.001]
[1753395130232,7.83864513,3715.2,3715.1,0.001]
[1753395133323,8.9812755,3715.2,3715.1,0.001]
[1753395133722,9.7476755,3715.2,3715.1,0.001]
[1753395136023,9.7456755,3715.2,3715.1,0.001]
[1753395139113,9.7794755,3715.2,3715.1,0.001]
[1753395139318,13.3294755,3715.2,3715.1,0.001]
[1753395139737,3.51155237,3714.5,3714.4,0.001]
[1753395139946,2.6925873,3713.9,3713.8,0.001]
[1753395140153,7.90630537,3713.9,3713.8,0.001]
[1753395140326,2.69323996,3713.0,3712.5,0.1344]
[1753395140531,2.69323996,3713.0,3712.5,0.888]
[1753395140826,2.72015803,3713.0,3712.5,0.888]
[1753395141816,3.63613996,3713.0,3712.5,0.7536]
[1753395142022,5.58506702,3713.0,3711.8,0.799]
[1753395142371,5.58506702,3713.0,3712.1,0.1344]
[1753395143530,5.55814895,3713.0,3712.1,0.1344]
[1753395144260,5.58506702,3713.0,3712.1,0.1344]
[1753395144439,5.55814895,3713.0,3712.1,0.1344]
[1753395144752,9.79114895,3713.0,3712.1,0.1344]
[1753395145161,12.79114895,3713.0,3711.8,0.799]
[1753395145332,12.79114895,3713.0,3711.7,0.1344]
[1753395146470,12.79114895,3713.0,3711.6,0.1344]
[1753395146763,3.49110269,3712.5,3711.4,0.001]
[1753395146970,8.49820836,3712.5,3711.4,0.001]
[1753395147132,9.41419029,3712.5,3711.4,0.001]
[1753395147333,2.69432843,3711.5,3711.4,0.001]
[1753395147563,7.7822465,3711.5,3711.4,0.001]
[1753395147766,8.69822843,3711.5,3711.4,0.001]
[1753395148059,9.837475,3711.5,3711.4,0.001]
[1753395148228,12.837475,3711.5,3711.4,0.001]
[1753395149236,11.69922843,3711.5,3711.4,0.001]
[1753395149837,11.69822843,3711.5,3711.4,0.001]
[1753395150380,11.69822843,3711.5,3709.0,0.009]
[1753395150381,0.7591,3710.5,3709.0,0.009]
[1753395150535,2.69591545,3709.4,3708.9,0.009]
[1753395150732,4.232,3709.6,3708.8,0.8229]
[1753395150969,0.4865,3709.5,3708.8,0.8229]
[1753395151169,4.9911,3709.4,3708.4,0.8229]
[1753395151371,2.69629566,3708.8,3708.4,0.8229]
[1753395151551,6.928157,3709.0,3708.4,0.8229]
[1753395151753,2.69634507,3708.8,3708.4,0.8229]
[1753395151951,6.928157,3709.0,3708.4,0.8229]
[1753395152161,4.232,3709.0,3708.4,0.8229]
[1753395152373,2.6965686,3708.5,3708.0,0.7544]
[1753395152563,0.02691807,3708.9,3708.0,0.7544]
[1753395152765,2.69663983,3708.4,3708.0,0.7544]
[1753395153073,2.69663226,3708.4,3708.0,0.7544]
[1753395153234,4.7195,3709.0,3708.0,0.7544]
[1753395153235,2.69674364,3708.2,3708.0,0.7544]
[1753395153438,2.6966652,3708.3,3708.0,0.7544]
[1753395153633,0.9429,3709.3,3708.0,0.7544]
[1753395153868,2.69623213,3708.9,3708.0,0.7544]
[1753395154072,2.696504,3708.6,3708.0,0.7544]
[1753395154237,2.6962172,3708.9,3708.1,0.34603873]
[1753395154442,1.3188,3709.8,3708.2,0.02696726]
[1753395154770,4.25891807,3709.7,3708.3,0.7888]
[1753395154975,4.25891807,3709.7,3708.4,2.69651776]
[1753395155340,4.6884,3709.7,3708.3,0.7888]
[1753395155535,2.69586645,3709.4,3708.6,2.69636344]
[1753395155777,2.69571087,3709.6,3708.8,0.7798]
[1753395155951,2.69584282,3709.5,3708.8,0.7798]
[1753395156146,2.69572616,3709.6,3708.8,3.47606547]
[1753395156389,6.92764443,3709.7,3708.9,2.69614845]
[1753395156685,2.69578317,3709.5,3708.8,3.47603407]
[1753395156843,4.232,3709.7,3708.9,0.42939502]
[1753395157190,2.69428491,3711.6,3709.5,3.47552779]
[1753395157191,2.69519984,3710.3,3709.5,3.47552779]
[1753395157340,0.1344,3710.1,3709.6,2.83010477]
[1753395157540,4.6894,3710.4,3709.5,0.7798]
[1753395157541,4.233,3710.4,3709.5,0.7798]
[1753395157776,2.69533434,3710.2,3709.8,0.1344]
[1753395157980,2.82961224,3710.3,3709.8,0.1344]
[1753395158183,0.1344,3710.3,3709.8,0.1344]
[1753395158482,2.69533758,3710.2,3709.8,0.1344]
[1753395158783,4.233,3710.4,3709.5,3.7798]
[1753395158986,3.0,3711.4,3710.3,7.9404797]
[1753395158987,0.7689,3711.4,3710.3,7.9404797]
[1753395159139,3.63718198,3711.6,3710.6,2.69491879]
[1753395159467,3.63718198,3711.6,3710.9,0.1344]
[1753395159468,2.69469145,3711.0,3710.9,0.1344]
[1753395159653,2.69498194,3710.6,3710.5,0.7581]
[1753395159837,2.69533941,3710.2,3709.6,3.0]
[1753395160042,2.69512721,3710.4,3709.9,0.1344]
[1753395160278,2.69528625,3710.2,3709.9,0.1344]
[1753395160980,2.69534273,3710.2,3709.9,0.1344]
[1753395161541,0.1344,3710.5,3709.9,0.1344]
[1753395161742,2.69514955,3710.4,3709.9,0.1344]
[1753395162183,2.69521954,3710.3,3709.9,0.1344]
[1753395162366,2.69536105,3710.1,3709.9,0.1344]
[1753395162679,2.69529408,3710.2,3709.9,0.1344]
[1753395163294,2.69522295,3710.3,3709.9,0.1344]
[1753395163780,2.69527486,3710.2,3709.9,0.1344]
[1753395164082,0.1344,3710.5,3709.9,0.1344]
[1753395164382,4.2228,3710.8,3710.5,0.8316]
[1753395164543,2.69492044,3710.7,3710.4,0.1344]
[1753395164748,2.69484577,3710.8,3710.4,0.1344]
[1753395164942,2.82915569,3711.0,3710.4,0.1344]
[1753395165147,2.69473929,3711.0,3710.4,0.1344]
[1753395165379,2.69473929,3711.0,3710.1,3.52692753]
[1753395165569,0.002,3711.5,3710.4,7.9404797]
[1753395165880,0.002,3711.5,3710.5,4.25795054]
[1753395166043,2.69454659,3711.2,3711.1,0.1344]
[1753395166243,2.6949215,3710.7,3710.4,0.8316]
[1753395166452,0.4506,3711.2,3710.7,0.1344]
[1753395166453,2.69480102,3710.9,3710.7,0.1344]
[1753395166755,2.69469807,3711.0,3710.7,0.1344]
[1753395167088,2.69483669,3710.8,3710.7,0.1344]
[1753395167646,0.93191807,3710.8,3710.4,0.8316]
[1753395167866,2.69454623,3711.2,3710.4,0.966]
[1753395167867,2.69505457,3710.5,3710.4,0.966]
[1753395168387,2.69534183,3710.2,3709.9,0.7565]
[1753395168711,2.69535281,3710.1,3709.9,0.8909]
[1753395169686,3.14975281,3710.1,3709.9,0.1344]
[1753395169994,0.55,3708.4,3706.5,0.1352]
[1753395170196,0.8153,3708.6,3706.7,2.69781746]
[1753395170197,0.1352,3707.4,3706.7,2.69781746]
[1753395170503,2.69687591,3708.0,3707.1,2.69749812]
[1753395170660,0.1352,3708.0,3707.4,0.1352]
[1753395171480,2.69705269,3707.8,3707.4,0.1352]
[1753395171691,0.4506,3707.8,3707.4,0.1352]
[1753395172104,2.69719563,3707.6,3707.4,0.1352]
[1753395172305,0.4506,3707.7,3707.0,3.0]
[1753395172600,3.14769405,3707.7,3707.3,0.1352]
[1753395172896,4.23,3708.2,3707.4,0.79977308]
[1753395173199,0.93191807,3708.1,3707.4,0.7728]
[1753395173364,2.69720008,3707.6,3707.3,0.1352]
[1753395173569,0.1352,3707.8,3707.3,0.1352]
[1753395173788,0.4506,3707.7,3707.3,0.1352]
[1753395173993,2.69689882,3708.0,3707.1,2.69746831]
[1753395174196,0.97486665,3708.6,3707.5,0.55]
[1753395174379,0.97486665,3708.6,3707.9,2.69694169]
[1753395174907,0.97486665,3708.6,3707.7,2.72405723]
[1753395174908,0.97486665,3708.6,3707.7,3.55]
[1753395175199,0.97486665,3708.6,3707.8,3.48939745]
[1753395175569,3.67132103,3708.6,3707.8,3.48939745]
[1753395175768,0.97486665,3708.6,3707.9,2.69692231]
[1753395176001,0.97486665,3708.6,3707.9,3.49034436]
[1753395176199,0.97486665,3708.6,3708.0,2.69685377]
[1753395176426,0.97486665,3708.6,3708.1,0.02696798]
[1753395176573,0.97486665,3708.6,3708.5,2.69650802]
[1753395176872,0.97486665,3708.6,3708.5,2.83990802]
[1753395177069,0.97486665,3708.6,3708.2,4.241]
[1753395177070,0.97486665,3708.6,3708.4,2.69656499]
[1753395177273,0.97486665,3708.6,3708.3,2.69664032]
[1753395177473,0.97486665,3708.6,3708.4,0.97777848]
[1753395177976,1.87986665,3708.6,3708.4,4.241]
[1753395178305,1.87986665,3708.6,3707.9,0.7934]
[1753395178478,2.69650802,3708.5,3707.9,0.7934]
[1753395178808,1.42546665,3708.6,3708.0,4.245]
[1753395178979,2.6965741,3708.5,3708.0,4.245]
[1753395179674,3.67131574,3708.6,3708.0,4.245]
[1753395180008,0.97486665,3708.6,3708.1,2.69674581]
[1753395180211,0.97486665,3708.6,3708.0,0.50384]
[1753395180504,0.97486665,3708.6,3708.1,4.244]
[1753395180685,0.97486665,3708.6,3708.1,6.94078972]
[1753395180886,0.97486665,3708.6,3708.1,4.244]
[1753395181402,0.97486665,3708.6,3708.2,4.241]
[1753395181718,3.67131639,3708.6,3708.1,1.00995108]
[1753395182032,3.67131761,3708.6,3708.0,4.74484]
[1753395182312,0.93191807,3708.5,3707.4,3.8308]
[1753395182515,2.696884,3708.0,3707.7,4.24]
[1753395182727,0.93191807,3707.9,3706.7,0.796]
[1753395182922,2.69721454,3707.6,3706.9,2.69761285]
[1753395183223,2.69736391,3707.4,3707.0,1.04594035]
[1753395183409,0.4506,3707.5,3707.0,1.04594035]
[1753395183410,3.14785122,3707.5,3707.0,1.04594035]
[1753395183735,2.72376715,3708.1,3707.1,2.69745566]
[1753395183736,0.4506,3708.0,3707.1,2.69745566]
[1753395183920,0.97486665,3708.6,3707.3,0.55]
[1753395184088,0.4506,3708.5,3708.2,0.1352]
[1753395184293,2.69665345,3708.3,3708.2,0.1352]
[1753395184493,2.69712884,3707.7,3707.1,0.7579]
[1753395184713,2.69694937,3707.9,3707.1,0.7579]
[1753395184714,2.6972074,3707.6,3707.1,0.7579]
[1753395184915,0.4506,3707.5,3707.3,0.1352]
[1753395185635,2.6971716,3707.6,3707.3,0.1352]
[1753395186215,3.1477716,3707.6,3707.3,0.1352]
[1753395186420,2.69724154,3707.5,3707.3,0.1352]
[1753395187223,3.60218113,3707.6,3707.3,0.1352]
[1753395187615,2.69723674,3707.5,3707.3,0.1352]
[1753395188030,3.60217897,3707.6,3707.3,0.0352]
[1753395188327,2.69723901,3707.5,3707.3,0.0352]
[1753395188515,0.4506,3707.6,3707.3,0.0352]
[1753395188911,2.69710667,3707.7,3707.3,0.0352]
[1753395189118,2.83224085,3707.8,3707.3,0.0352]
[1753395189318,3.14769196,3707.7,3707.3,0.0352]
[1753395189624,3.60209196,3707.7,3707.3,0.0352]
[1753395189848,0.1352,3707.8,3707.3,0.0352]
[1753395190025,2.69709348,3707.7,3707.3,0.0352]
[1753395190350,2.69703606,3707.8,3707.6,0.1352]
[1753395190516,0.4506,3707.9,3707.6,0.1352]
[1753395190723,0.4506,3708.4,3707.3,2.72433293]
[1753395191038,2.6967758,3708.2,3707.8,0.1352]
[1753395191336,0.1352,3708.4,3707.8,0.1352]
[1753395191534,2.69693811,3708.0,3707.8,0.1352]
[1753395191721,3.14753811,3708.0,3707.8,0.1352]
[1753395192534,3.14754436,3707.9,3707.8,0.0852]
[1753395192947,0.905,3707.9,3707.3,4.238]
[1753395193114,0.905,3707.9,3707.5,0.1352]
[1753395193311,3.15141709,3707.8,3707.5,0.1352]
[1753395193512,3.60201709,3707.8,3707.5,0.1352]
[1753395193712,0.1352,3708.0,3707.5,0.1352]
[1753395194013,0.4506,3708.3,3707.7,0.1352]
[1753395194014,2.69666389,3708.3,3707.7,0.1352]
[1753395194213,2.69666389,3708.3,3708.1,0.1352]
[1753395194444,0.4506,3708.9,3708.1,0.1352]
[1753395194606,2.69641715,3708.7,3708.1,0.1352]
[1753395194806,2.69645255,3708.6,3708.0,3.46741299]
[1753395195045,3.17374213,3708.9,3708.6,0.1352]
[1753395195046,2.6962899,3708.8,3708.6,0.1352]
[1753395195254,2.6962899,3708.8,3708.5,0.1352]
[1753395195255,2.69643531,3708.6,3708.5,0.1352]
[1753395195915,0.4796,3708.6,3708.5,0.1352]
[1753395196133,0.4544,3708.8,3708.5,0.1352]
[1753395196339,3.15069277,3708.8,3708.5,0.1352]
[1753395196652,2.69636936,3708.7,3708.5,0.1352]
[1753395197039,3.63030511,3708.8,3708.5,0.1352]
[1753395197442,2.69636596,3708.7,3708.5,0.1352]
[1753395197822,3.63029878,3708.8,3708.5,0.1352]
[1753395198023,1.245,3709.3,3708.5,0.1352]
[1753395198225,2.69612845,3709.1,3708.7,0.1352]
[1753395198737,0.4796,3709.0,3708.7,0.1352]
[1753395199034,3.17574451,3709.0,3708.7,0.1352]
[1753395199345,2.6962385,3708.9,3708.7,0.1352]
[1753395199546,3.17576923,3709.0,3708.7,0.1352]
[1753395199749,0.4796,3709.5,3708.8,0.7783]
[1753395199934,2.69592826,3709.3,3708.9,0.1352]
[1753395200265,2.69587322,3709.4,3709.2,0.1344]
[1753395200614,2.69592645,3709.3,3709.2,0.1344]
[1753395203467,0.4796,3709.3,3709.2,0.1344]
[1753395204351,3.17552645,3709.3,3709.2,0.1344]
[1753395205619,0.4796,3709.3,3709.2,0.1344]
[1753395206024,3.17552645,3709.3,3709.2,0.1344]
[1753395206426,2.69629556,3708.8,3708.3,3.7683]
[1753395206757,2.69645323,3708.6,3708.3,0.7683]
[1753395206925,0.4796,3708.6,3708.3,0.7683]
[1753395207125,0.4796,3708.6,3708.5,0.1352]
[1753395208155,4.30057409,3708.6,3707.8,0.001]
[1753395208355,2.69680677,3708.1,3707.9,0.1352]
[1753395208875,2.69687162,3708.0,3707.9,0.1352]
[1753395209158,3.17641586,3708.1,3707.9,0.1352]
[1753395209870,3.64041586,3708.1,3707.9,0.1352]
[1753395210071,3.16081586,3708.1,3707.9,0.1352]
[1753395210274,0.4796,3708.0,3707.9,0.1352]
[1753395210874,3.17647162,3708.0,3707.9,0.1352]
[1753395211076,3.64047162,3708.0,3707.9,0.1352]
[1753395211573,2.69694436,3707.9,3707.8,0.001]
[1753395211780,3.66746243,3707.9,3707.8,0.001]
[1753395211983,4.40594436,3707.9,3707.8,0.001]
[1753395212279,4.54114436,3707.9,3707.8,0.001]
[1753395213077,0.4796,3707.9,3707.8,0.001]
[1753395213284,3.16077873,3708.2,3707.8,0.1362]
[1753395213660,3.64037873,3708.2,3707.8,0.1362]
[1753395213859,2.69631496,3708.8,3707.8,0.1362]
[1753395213860,4.233,3708.5,3707.8,2.98132792]
[1753395214068,2.69658073,3708.4,3708.1,0.1352]
[1753395214400,2.69672617,3708.2,3708.1,0.1352]
[1753395214751,3.16072617,3708.2,3708.1,0.1352]
[1753395214982,3.64032617,3708.2,3708.1,0.1352]
[1753395215278,0.9436,3708.2,3708.1,0.1352]
[1753395215486,3.64032617,3708.2,3708.1,0.1352]
[1753395215863,2.69694436,3707.9,3707.8,0.001]
[1753395216262,3.64054436,3707.9,3707.8,0.001]
[1753395221201,3.66746243,3707.9,3707.8,0.001]
[1753395222496,3.80266243,3707.9,3707.8,0.001]
[1753395223809,4.58406243,3707.9,3707.8,0.001]
[1753395223981,5.58395594,3707.9,3707.8,0.001]
[1753395224583,8.58395594,3707.9,3707.8,0.001]
[1753395224785,8.55703787,3707.9,3707.8,0.001]
[1753395225123,5.55703787,3707.9,3707.8,0.001]
[1753395225323,9.80625594,3707.9,3707.8,0.001]
[1753395225620,9.77933787,3707.9,3707.8,0.001]
[1753395225846,4.54644436,3707.9,3707.8,0.001]
[1753395225997,7.99804436,3707.9,3707.8,0.001]
[1753395226335,3.76504436,3707.9,3707.8,0.001]
[1753395226515,7.99804436,3707.9,3707.8,0.001]
[1753395227026,0.1352,3707.9,3707.8,0.001]
[1753395227213,4.234,3708.0,3707.8,0.001]
[1753395227526,2.69678982,3708.2,3707.8,0.001]
[1753395227727,4.234,3708.3,3707.9,0.1352]
[1753395227915,2.69672617,3708.2,3707.9,0.1352]
[1753395228227,2.69687162,3708.0,3707.9,0.1352]
[1753395228924,2.6968211,3708.1,3707.9,0.1352]
[1753395229128,2.6988211,3708.1,3707.9,0.1352]
[1753395229333,2.69687162,3708.0,3707.9,0.1352]
[1753395230398,3.17197162,3708.0,3707.9,0.1352]
[1753395231830,0.4751,3708.0,3707.9,0.1352]
[1753395232132,3.17197162,3708.0,3707.9,0.1352]
[1753395232342,0.002,3708.1,3707.9,0.1352]
[1753395233651,2.69880565,3708.1,3707.9,0.1352]
[1753395233954,3.60685367,3708.1,3707.9,0.1352]
[1753395234618,3.60685367,3708.1,3707.8,0.001]
[1753395234619,2.69694436,3707.9,3707.8,0.001]
[1753395234819,2.83214436,3707.9,3707.8,0.001]
[1753395235019,3.74014436,3707.9,3707.8,0.001]
[1753395235752,2.69687321,3708.0,3707.8,0.001]
[1753395236318,2.69694436,3707.9,3707.8,0.001]
[1753395236550,3.60494436,3707.9,3707.8,0.001]
[1753395237531,0.908,3707.9,3707.8,0.001]
[1753395237732,0.002,3708.1,3707.8,0.001]
[1753395237952,2.6988068,3708.1,3707.8,0.001]
[1753395238755,3.17198084,3708.0,3707.8,0.001]
[1753395238957,3.60488084,3708.0,3707.8,0.001]
[1753395240253,3.12978084,3708.0,3707.8,0.001]
[1753395240418,0.908,3707.9,3707.8,0.001]
[1753395242363,0.4751,3707.9,3707.8,0.001]
[1753395243074,0.002,3708.1,3708.0,0.7701]
[1753395243225,0.002,3708.1,3708.0,4.09969368]
[1753395243565,0.002,3708.1,3708.0,1.53802206]
[1753395243876,0.002,3708.1,3708.0,0.9053]
[1753395244221,0.002,3708.1,3708.0,0.1352]
[1753395244770,0.91,3708.1,3707.8,0.001]
[1753395244925,0.002,3708.1,3707.9,0.1352]
[1753395245146,0.4771,3708.1,3707.9,0.1352]
[1753395245348,3.6068024,3708.1,3707.9,0.1352]
[1753395245745,0.4751,3708.0,3707.9,0.1352]
[1753395246987,2.69694436,3707.9,3707.8,0.001]
[1753395247165,2.69689819,3708.0,3707.8,0.001]
[1753395247483,0.908,3707.9,3707.8,0.001]
[1753395248161,0.4751,3707.9,3707.8,0.001]
[1753395249060,3.17392474,3708.1,3707.8,0.001]
[1753395249279,0.002,3708.1,3707.8,0.001]
[1753395249480,0.002,3708.1,3708.0,0.1352]
[1753395249890,0.91,3708.1,3708.0,0.1352]
[1753395251760,2.69694436,3707.9,3707.8,0.001]
[1753395252163,3.17204436,3707.9,3707.8,0.001]
[1753395252656,3.60494436,3707.9,3707.8,0.001]
[1753395252857,0.908,3707.9,3707.8,0.001]
[1753395253182,3.60494436,3707.9,3707.8,0.001]
[1753395253684,3.63186243,3707.9,3707.8,0.001]
[1753395254855,4.87055327,3707.9,3707.8,0.001]
[1753395256985,5.77190808,3707.9,3707.8,0.001]
[1753395257212,6.51279001,3707.9,3707.8,0.001]
[1753395258994,6.52659001,3707.9,3707.8,0.001]
[1753395263464,10.75859001,3707.9,3707.8,0.001]
[1753395268898,10.26969001,3707.9,3707.8,0.001]
[1753395269092,10.75859001,3707.9,3707.8,0.001]
[1753395270594,13.75859001,3707.9,3707.8,0.001]
[1753395272594,13.89379001,3707.9,3707.8,0.001]
[1753395274709,28.39579001,3707.9,3707.8,0.001]
[1753395274904,28.97107114,3707.9,3707.8,0.001]
[1753395275107,24.73907114,3707.9,3707.8,0.001]
[1753395275325,6.66379001,3707.9,3707.8,0.001]
[1753395275530,10.89379001,3707.9,3707.8,0.001]
[1753395276033,0.769,3707.0,3704.9,0.8304]
[1753395276237,0.1352,3705.0,3704.9,0.8304]
[1753395276451,0.4889,3706.4,3705.2,0.8103]
[1753395276736,4.00069118,3706.5,3705.2,0.8103]
[1753395276737,0.02691807,3706.9,3705.8,0.8103]
[1753395276921,0.1352,3706.7,3706.2,0.1352]
[1753395277124,2.69778952,3706.8,3706.3,0.8103]
[1753395277320,2.69782267,3706.7,3706.3,0.8103]
[1753395277633,2.69782267,3706.7,3706.3,1.1891214]
[1753395278035,2.83287938,3706.9,3706.3,0.3788214]
[1753395278347,2.69738084,3707.3,3706.4,0.8229]
[1753395278551,2.69753865,3707.1,3706.5,0.001]
[1753395278756,2.69745535,3707.2,3706.6,0.40441512]
[1753395278913,2.69786155,3706.7,3706.4,0.8229]
[1753395279555,2.69776671,3706.8,3706.4,0.8229]
[1753395280422,2.69767558,3706.9,3706.4,0.8229]
[1753395280952,0.9594,3707.8,3706.6,0.7823]
[1753395281157,2.69730732,3707.5,3706.8,2.69772523]
[1753395281474,2.69715645,3707.7,3706.9,1.13040252]
[1753395281658,2.69714674,3707.7,3707.0,2.6975724]
[1753395281953,4.7189,3707.8,3706.9,3.48095357]
[1753395281954,2.69717804,3707.6,3706.9,3.48095357]
[1753395282133,0.02691807,3707.5,3706.9,0.7833]
[1753395282320,0.02691807,3707.5,3706.9,0.7823]
[1753395282650,0.90335481,3707.9,3706.9,0.7823]
[1753395282651,2.69708004,3707.8,3707.0,3.29993716]
[1753395282861,2.69710671,3707.7,3707.0,3.29993716]
[1753395283263,2.69716666,3707.6,3707.0,0.60338999]
[1753395283468,2.69731873,3707.4,3707.0,0.60338999]
[1753395283638,2.69724787,3707.5,3707.0,0.60238999]
[1753395283963,2.69724787,3707.5,3707.1,0.42258229]
[1753395284255,2.69724632,3707.5,3707.1,0.42258229]
[1753395284625,2.69724632,3707.5,3706.9,0.9257]
[1753395284626,2.69738326,3707.3,3706.9,0.7823]
[1753395285585,2.69740009,3707.3,3706.9,0.7823]
[1753395285955,2.69740233,3707.3,3706.9,0.7823]
[1753395288183,2.69732095,3707.4,3706.9,0.7823]
[1753395288783,0.90335481,3707.9,3706.9,0.9175]
[1753395289080,0.1352,3707.8,3707.4,0.7853]
[1753395289282,0.90335481,3707.9,3707.5,0.1352]
[1753395289483,0.90335481,3707.9,3707.5,2.83241976]
[1753395289700,0.90335481,3707.9,3707.5,1.44961649]
[1753395289884,3.60035751,3707.9,3707.5,1.44861649]
[1753395290062,2.69702579,3707.8,3707.5,0.1352]
[1753395290272,2.72396128,3707.8,3707.5,0.1352]
[1753395290967,2.69716258,3707.6,3707.5,0.1352]
[1753395291187,2.69716258,3707.6,3707.4,0.7853]
[1753395291188,2.69723533,3707.5,3707.4,0.7853]
[1753395291558,2.6971805,3707.6,3707.4,0.7853]
[1753395291757,0.5974,3707.8,3707.4,0.7853]
[1753395292070,0.90335481,3707.9,3707.5,0.1352]
[1753395292274,0.89415481,3707.9,3707.7,0.1352]
[1753395292866,0.89415481,3707.9,3707.8,0.8267]
[1753395297398,3.59109917,3707.9,3707.8,0.8267]
[1753395297587,0.89415481,3707.9,3707.6,4.228]
[1753395297792,0.89415481,3707.9,3707.8,0.1352]
[1753395298912,0.89415481,3707.9,3707.8,2.83221709]
[1753395299118,0.89415481,3707.9,3707.8,3.76801709]
[1753395299716,0.89415481,3707.9,3707.8,0.9266]
[1753395299919,0.89415481,3707.9,3707.8,5.1546]
[1753395300436,0.89415481,3707.9,3707.8,14.39573853]
[1753395300636,0.89415481,3707.9,3707.8,10.14076836]
[1753395300802,0.89415481,3707.9,3707.8,14.36876836]
[1753395300999,0.002,3707.9,3707.8,14.91876836]
[1753395301199,0.002,3708.1,3708.0,12.73642762]
[1753395301549,0.002,3708.9,3708.6,17.66643731]
[1753395301739,0.002,3709.3,3709.2,3.24599913]
[1753395301900,0.002,3709.3,3709.2,16.54865897]
[1753395302105,0.002,3709.3,3709.2,16.66109898]
[1753395303748,0.002,3709.4,3709.3,7.01272645]
[1753395303947,0.002,3709.4,3709.3,9.35350819]
[1753395305245,0.002,3709.4,3709.3,13.58050819]
[1753395306442,0.002,3709.4,3709.3,13.58150819]
[1753395307045,0.002,3709.4,3709.3,18.68270804]
[1753395307609,0.002,3709.4,3709.3,18.82310804]
[1753395307854,0.002,3709.4,3709.3,36.80124504]
[1753395308059,0.002,3709.5,3709.4,3.24585377]
[1753395308234,0.002,3709.5,3709.4,5.46356573]
[1753395308750,0.002,3709.5,3709.4,14.93116558]
[1753395308937,0.002,3709.5,3709.4,14.76380705]
[1753395309325,0.002,3709.5,3709.4,13.53780705]
[1753395309526,0.002,3709.5,3709.4,17.76380705]
[1753395309762,0.002,3709.5,3709.4,17.90420705]
[1753395310946,0.002,3709.5,3709.1,0.8142]
[1753395311256,0.4622,3709.4,3709.2,6.92099831]
[1753395311757,0.4622,3709.4,3709.3,0.1344]
[1753395311955,0.4622,3709.4,3709.3,2.83032645]
[1753395312163,0.4622,3709.4,3709.3,0.1344]
[1753395312729,0.9163,3709.4,3709.3,0.1344]
[1753395313227,0.9163,3709.4,3708.3,2.8370264]
[1753395313228,2.69609574,3709.1,3708.4,3.48417739]
[1753395313422,0.4622,3709.0,3708.9,2.6962172]
[1753395313630,0.4622,3709.3,3709.0,2.69614187]
[1753395313961,0.002,3709.5,3709.4,2.69585377]
[1753395314162,0.002,3709.5,3709.4,7.47085377]
[1753395314457,0.002,3709.5,3709.4,13.37096812]
[1753395318959,0.002,3709.5,3709.4,13.36996812]
[1753395319228,0.002,3709.5,3709.4,13.37096812]
[1753395320369,0.002,3709.5,3709.4,16.79274812]
[1753395320874,0.002,3709.5,3709.4,17.12833812]
[1753395321073,0.002,3709.5,3709.4,16.84513112]
[1753395321271,0.002,3709.5,3709.4,13.37096812]
[1753395321570,0.002,3709.5,3709.4,15.46701812]
[1753395321959,0.002,3709.5,3709.4,15.60741812]
[1753395322358,0.002,3709.6,3709.5,6.2457811]
[1753395322557,0.002,3709.6,3709.5,26.41300186]
[1753395322761,0.002,3709.6,3709.5,22.77060386]
[1753395322978,0.002,3709.6,3709.5,21.79131386]
[1753395323491,0.002,3709.6,3709.5,26.06809686]
[1753395323785,0.002,3710.2,3709.9,0.55]
[1753395324084,0.002,3710.2,3710.1,15.09239071]
[1753395324579,0.002,3710.2,3710.1,15.23279071]
[1753395325368,0.002,3710.2,3710.1,22.72051371]
[1753395325695,0.9607,3710.2,3710.1,5.82974513]
[1753395325862,0.9607,3710.2,3710.1,10.05374513]
[1753395326062,0.002,3710.2,3710.1,11.87866869]
[1753395326264,0.002,3710.2,3710.1,20.65161427]
[1753395326464,0.002,3710.2,3710.1,16.42761427]
[1753395326705,0.4975,3710.2,3710.1,7.65466869]
[1753395326911,0.4975,3710.2,3710.1,11.87766869]
[1753395327401,0.9607,3710.2,3710.1,0.1344]
[1753395327571,0.9607,3710.2,3710.1,4.3574]
[1753395328589,0.9607,3710.2,3708.8,0.8064]
[1753395328590,0.7802,3709.8,3708.8,0.8064]
[1753395328797,0.98561807,3709.7,3709.3,0.1344]
[1753395329014,2.69584946,3709.5,3709.3,4.3574]
[1753395329161,0.9587,3709.4,3709.3,4.3574]
[1753395330695,0.4955,3709.6,3709.3,4.3574]
[1753395331007,0.4955,3709.6,3709.4,2.69583157]
[1753395331312,0.7802,3709.8,3709.5,4.3574]
[1753395331478,0.4632,3709.6,3709.5,7.0531811]
[1753395331674,0.9587,3709.6,3709.5,4.223]
[1753395331865,0.9587,3709.6,3709.5,4.3574]
[1753395333323,0.9587,3709.6,3709.5,0.1344]
[1753395333606,0.9587,3709.6,3709.5,7.0531811]
[1753395333921,0.4632,3710.0,3709.6,2.69565377]
[1753395334074,0.4955,3709.9,3709.7,6.91857162]
[1753395334404,0.4632,3710.0,3709.9,0.1344]
[1753395334587,0.4632,3710.0,3709.9,4.223]
[1753395334901,0.9587,3710.0,3709.8,0.1344]
[1753395335076,0.9587,3710.0,3709.9,4.223]
[1753395335602,2.69549044,3709.9,3709.2,3.0]
[1753395335807,0.02691807,3709.9,3709.6,0.1344]
[1753395336112,0.9587,3709.8,3709.6,0.1344]
[1753395336403,0.83,3709.8,3709.5,0.1344]
[1753395336706,2.69580742,3709.5,3709.3,4.3574]
[1753395337003,0.9587,3709.4,3709.3,4.3574]
[1753395338909,0.4632,3709.4,3709.3,4.3574]
[1753395339102,0.9587,3709.4,3709.3,4.3574]
[1753395339471,0.9587,3709.4,3709.3,4.3584]